Workbook

Sheet Part1. Bench_Indicator
A1: Example of the use of XLPBM to benchmark quarterly indicators to annual 'benchmark' data
B3: Annual benchmark | E3: Indicator data | J3: Benchmak series | K3: BM | L3: BM | M3: BM | N3: BM
A4: Year | B4: Y | C4: 2. Check A=SumQ | E4: Year | F4: Q | G4: X | H4: 3. Growth X | J4: Year Q | K4: 1. Denton B/I=0 | L4: 3. Growth of 1. | M4: 4. Denton, B/I=5 | N4: 5. Cholette-Dagum
A5: 2006 | B5: 954.2102131 | E5: =A5 -> 2006 | F5: 1 | G5: 77.13493005 | J5: =E5&" Q"&F5 -> 2006 Q1
A6: =A5+1 -> 2007 | B6: 959.0988206 | E6: =E5 -> 2006 | F6: 2 | G6: 87.45846386 | J6: =E6&" Q"&F6 -> 2006 Q2
A7: =A6+1 -> 2008 | B7: 900.9075827 | E7: =E6 -> 2006 | F7: 3 | G7: 83.19288963 | J7: 2006 Q3
A8: 2009 | B8: 922.0047187 | E8: 2006 | F8: 4 | G8: 90.58358761 | J8: 2006 Q4
A9: 2010 | B9: 944.4689737 | E9: =E5+1 -> 2007 | F9: 1 | G9: 80.63323314 | J9: 2007 Q1
A10: 2011 | B10: 957.161293 | E10: =E6+1 -> 2007 | F10: 2 | G10: 88.06922787 | J10: 2007 Q2
A11: 2012 | B11: 980.2818895 | E11: 2007 | F11: 3 | G11: 83.03379752 | J11: 2007 Q3
A12: 2013 | B12: 1031.229666 | E12: 2007 | F12: 4 | G12: 88.42271487 | J12: 2007 Q4
A13: 2014 | B13: 1088.418693 | E13: 2008 | F13: 1 | G13: 74.30978251 | J13: 2008 Q1
A14: 2015 | B14: 1136.222074 | E14: 2008 | F14: 2 | G14: 82.27758641 | J14: 2008 Q2
A15: 2016 | E15: 2008 | F15: 3 | G15: 78.7746417 | J15: 2008 Q3
E16: 2008 | F16: 4 | G16: 83.74285335 | J16: 2008 Q4
E17: 2009 | F17: 1 | G17: 74.05556533 | J17: 2009 Q1
E18: 2009 | F18: 2 | G18: 83.81758796 | J18: 2009 Q2
E19: 2009 | F19: 3 | G19: 80.88933086 | J19: 2009 Q3
E20: 2009 | F20: 4 | G20: 87.97160588 | J20: 2009 Q4
E21: 2010 | F21: 1 | G21: 77.09140693 | J21: 2010 Q1
E22: 2010 | F22: 2 | G22: 86.15673568 | J22: 2010 Q2
E23: 2010 | F23: 3 | G23: 82.01699485 | J23: 2010 Q3
E24: 2010 | F24: 4 | G24: 88.72477604 | J24: 2010 Q4
E25: 2011 | F25: 1 | G25: 75.85732199 | J25: 2011 Q1
E26: 2011 | F26: 2 | G26: 87.39639938 | J26: 2011 Q2
E27: 2011 | F27: 3 | G27: 84.40979174 | J27: 2011 Q3
E28: 2011 | F28: 4 | G28: 89.76541579 | J28: 2011 Q4
E29: 2012 | F29: 1 | G29: 76.79443709 | J29: 2012 Q1
E30: 2012 | F30: 2 | G30: 88.88546567 | J30: 2012 Q2
E31: 2012 | F31: 3 | G31: 85.49269987 | J31: 2012 Q3
E32: 2012 | F32: 4 | G32: 92.86001675 | J32: 2012 Q4
E33: 2013 | F33: 1 | G33: 82.78310559 | J33: 2013 Q1
E34: 2013 | F34: 2 | G34: 91.35273302 | J34: 2013 Q2
E35: 2013 | F35: 3 | G35: 89.980676 | J35: 2013 Q3
E36: 2013 | F36: 4 | G36: 96.79677441 | J36: 2013 Q4
E37: 2014 | F37: 1 | G37: 86.71297629 | J37: 2014 Q1
E38: 2014 | F38: 2 | G38: 96.75833633 | J38: 2014 Q2
E39: 2014 | F39: 3 | G39: 95.27051535 | J39: 2014 Q3
E40: 2014 | F40: 4 | G40: 103.2209131 | J40: 2014 Q4
E41: 2015 | F41: 1 | G41: 93.12079384 | J41: 2015 Q1
E42: 2015 | F42: 2 | G42: 101.6292184 | J42: 2015 Q2
E43: 2015 | F43: 3 | G43: 98.54374037 | J43: 2015 Q3
E44: 2015 | F44: 4 | G44: 106.7062473 | J44: 2015 Q4
E45: 2016 | F45: 1 | G45: 94.35 | J45: 2016 Q1
E46: 2016 | F46: 2 | G46: 101.74 | J46: 2016 Q2
E47: 2016 | F47: 3 | G47: 97.4 | J47: 2016 Q3
E48: 2016 | F48: 4 | G48: 104.2 | J48: 2016 Q4

Sheet Part2. Bench_Deflator
A1: Example of the use of XLPBM to benchmark a quarterly price index to an annual deflator
A3: A) We have an annual deflator for Hotels and Restaurants
B4: Def | C4: 1. Annual CPI Index | D4: 2. Annual Benchmarked Price
A5: 2006 | B5: 106.4658932
A6: =A5+1 -> 2007 | B6: 102.6139437
A7: =A6+1 -> 2008 | B7: 102.7570435
A8: 2009 | B8: 99.11498429
A9: 2010 | B9: 101.7504547
H10: C) We can use XLPBM to benchmark the price to the deflator (multiplying the result by 4)
A11: B) ...and a quarterly price index for 'Meals Out' (based on the CPI)
A12: Year | B12: Q | C12: CPI Price | H12: Year | I12: Q | K12: 2. Benchmarked Price
A13: 2006 | B13: 1 | C13: 100.6616463 | H13: =A13 -> 2006 | I13: =B13 -> 1 | J13: =H13&" Q"&I13 -> 2006 Q1
A14: 2006 | B14: 2 | C14: 103.8488198 | H14: =A14 -> 2006 | I14: =B14 -> 2 | J14: =H14&" Q"&I14 -> 2006 Q2
A15: 2006 | B15: 3 | C15: 102.6056014 | H15: 2006 | I15: 3 | J15: 2006 Q3
A16: 2006 | B16: 4 | C16: 108.6808509 | H16: 2006 | I16: 4 | J16: 2006 Q4
A17: 2007 | B17: 1 | C17: 101.8787085 | H17: 2007 | I17: 1 | J17: 2007 Q1
A18: 2007 | B18: 2 | C18: 101.2517471 | H18: 2007 | I18: 2 | J18: 2007 Q2
A19: 2007 | B19: 3 | C19: 98.7476492 | H19: 2007 | I19: 3 | J19: 2007 Q3
A20: 2007 | B20: 4 | C20: 99.32193968 | H20: 2007 | I20: 4 | J20: 2007 Q4
A21: 2008 | B21: 1 | C21: 100.6648421 | H21: 2008 | I21: 1 | J21: 2008 Q1
A22: 2008 | B22: 2 | C22: 100.6915594 | H22: 2008 | I22: 2 | J22: 2008 Q2
A23: 2008 | B23: 3 | C23: 102.2258696 | H23: 2008 | I23: 3 | J23: 2008 Q3
A24: 2008 | B24: 4 | C24: 100.9521754 | H24: 2008 | I24: 4 | J24: 2008 Q4
A25: 2009 | B25: 1 | C25: 99.61755841 | H25: 2009 | I25: 1 | J25: 2009 Q1
A26: 2009 | B26: 2 | C26: 97.20439664 | H26: 2009 | I26: 2 | J26: 2009 Q2
A27: 2009 | B27: 3 | C27: 95.09891531 | H27: 2009 | I27: 3 | J27: 2009 Q3
A28: 2009 | B28: 4 | C28: 97.33965159 | H28: 2009 | I28: 4 | J28: 2009 Q4
A29: 2010 | B29: 1 | C29: 96.2510756 | H29: 2010 | I29: 1 | J29: 2010 Q1
A30: 2010 | B30: 2 | C30: 97.10204268 | H30: 2010 | I30: 2 | J30: 2010 Q2
A31: 2010 | B31: 3 | C31: 97.88887753 | H31: 2010 | I31: 3 | J31: 2010 Q3
A32: 2010 | B32: 4 | C32: 99.18858081 | H32: 2010 | I32: 4 | J32: 2010 Q4

Sheet Part3. Spline
A1: Example of a simple and a seasonal spline
A3: A. Assume we have an annual series for ISIC 1074: Manufacture of macaroni, noodles, couscous and similar farinaceous products | G3: B. We can create a simple spline for this series which is as smooth as possible…
B4: Annual Series | C4: Sum Spline | I4: Quarterly Spline | J4: For Simple Spline | K4: For Seasonal Spline
A5: 2004 | B5: 4560 | F5: 2004 | G5: 1 | H5: =F5&" Q"&G5 -> 2004 Q1 | J5: 1 | K5: 0.98 | AL5: =F5&G5 -> 20041 | AM5: =#REF! ->  | AN5: =I5 -> 0
A6: =A5+1 -> 2005 | B6: 4866.739805 | F6: =F5 -> 2004 | G6: 2 | H6: =F6&" Q"&G6 -> 2004 Q2 | J6: 1 | K6: 1.01 | AL6: 20042 | AM6: =#REF! ->  | AN6: =I6 -> 0
A7: =A6+1 -> 2006 | B7: 4966.370032 | F7: =F6 -> 2004 | G7: 3 | H7: 2004 Q3 | J7: 1 | K7: 1.02 | AL7: 20043 | AM7: =#REF! ->  | AN7: 0
A8: 2007 | B8: 5272.670502 | F8: 2004 | G8: 4 | H8: 2004 Q4 | J8: 1 | K8: 0.97 | AL8: 20044 | AM8: =#REF! ->  | AN8: 0
A9: 2008 | B9: 5672.571362 | F9: =F5+1 -> 2005 | G9: =G5 -> 1 | H9: 2005 Q1 | J9: 1 | K9: =K5 -> 0.98 | AL9: 20051 | AM9: =#REF! ->  | AN9: 0 | AP9: =AM9/AM5-1 -> 
A10: 2009 | B10: 5870.777432 | F10: =F6+1 -> 2005 | G10: =G6 -> 2 | H10: 2005 Q2 | J10: 1 | K10: =K6 -> 1.01 | AL10: 20052 | AM10: =#REF! ->  | AN10: 0
A11: 2010 | B11: 5773.852311 | F11: 2005 | G11: 3 | H11: 2005 Q3 | J11: 1 | K11: 1.02 | AL11: 20053 | AM11: =#REF! ->  | AN11: 0
A12: 2011 | B12: 5973.209396 | F12: 2005 | G12: 4 | H12: 2005 Q4 | J12: 1 | K12: 0.97 | AL12: 20054 | AM12: =#REF! ->  | AN12: 0
F13: 2006 | G13: 1 | H13: 2006 Q1 | J13: 1 | K13: 0.98 | AL13: 20061 | AM13: =#REF! ->  | AN13: 0
F14: 2006 | G14: 2 | H14: 2006 Q2 | J14: 1 | K14: 1.01 | AL14: 20062 | AM14: =#REF! ->  | AN14: 0
F15: 2006 | G15: 3 | H15: 2006 Q3 | J15: 1 | K15: 1.02 | AL15: 20063 | AM15: =#REF! ->  | AN15: 0
F16: 2006 | G16: 4 | H16: 2006 Q4 | J16: 1 | K16: 0.97 | AL16: 20064 | AM16: =#REF! ->  | AN16: 0
F17: 2007 | G17: 1 | H17: 2007 Q1 | J17: 1 | K17: 0.98 | AL17: 20071 | AM17: =#REF! ->  | AN17: 0
F18: 2007 | G18: 2 | H18: 2007 Q2 | J18: 1 | K18: 1.01 | AL18: 20072 | AM18: =#REF! ->  | AN18: 0
F19: 2007 | G19: 3 | H19: 2007 Q3 | J19: 1 | K19: 1.02 | AL19: 20073 | AM19: =#REF! ->  | AN19: 0
F20: 2007 | G20: 4 | H20: 2007 Q4 | J20: 1 | K20: 0.97 | AL20: 20074 | AM20: =#REF! ->  | AN20: 0
F21: 2008 | G21: 1 | H21: 2008 Q1 | J21: 1 | K21: 0.98 | AL21: 20081 | AM21: =#REF! ->  | AN21: 0
F22: 2008 | G22: 2 | H22: 2008 Q2 | J22: 1 | K22: 1.01 | AL22: 20082 | AM22: =#REF! ->  | AN22: 0
F23: 2008 | G23: 3 | H23: 2008 Q3 | J23: 1 | K23: 1.02 | AL23: 20083 | AM23: =#REF! ->  | AN23: 0
F24: 2008 | G24: 4 | H24: 2008 Q4 | J24: 1 | K24: 0.97 | AL24: 20084 | AM24: =#REF! ->  | AN24: 0
F25: 2009 | G25: 1 | H25: 2009 Q1 | J25: 1 | K25: 0.98 | AL25: 20091 | AM25: =#REF! ->  | AN25: 0
F26: 2009 | G26: 2 | H26: 2009 Q2 | J26: 1 | K26: 1.01 | AL26: 20092 | AM26: =#REF! ->  | AN26: 0
F27: 2009 | G27: 3 | H27: 2009 Q3 | J27: 1 | K27: 1.02 | AL27: 20093 | AM27: =#REF! ->  | AN27: 0
F28: 2009 | G28: 4 | H28: 2009 Q4 | J28: 1 | K28: 0.97 | AL28: 20094 | AM28: =#REF! ->  | AN28: 0
F29: 2010 | G29: 1 | H29: 2010 Q1 | J29: 1 | K29: 0.98 | AL29: 20101 | AM29: =#REF! ->  | AN29: 0
F30: 2010 | G30: 2 | H30: 2010 Q2 | J30: 1 | K30: 1.01 | AL30: 20102 | AM30: =#REF! ->  | AN30: 0
F31: 2010 | G31: 3 | H31: 2010 Q3 | J31: 1 | K31: 1.02 | AL31: 20103 | AM31: =#REF! ->  | AN31: 0
F32: 2010 | G32: 4 | H32: 2010 Q4 | J32: 1 | K32: 0.97 | AL32: 20104 | AM32: =#REF! ->  | AN32: 0
F33: 2011 | G33: 1 | H33: 2011 Q1 | J33: 1 | K33: 0.98 | AL33: 20111 | AM33: =#REF! ->  | AN33: 0
F34: 2011 | G34: 2 | H34: 2011 Q2 | J34: 1 | K34: 1.01 | AL34: 20112 | AM34: =#REF! ->  | AN34: 0
F35: 2011 | G35: 3 | H35: 2011 Q3 | J35: 1 | K35: 1.02 | AL35: 20113 | AM35: =#REF! ->  | AN35: 0
F36: 2011 | G36: 4 | H36: 2011 Q4 | J36: 1 | K36: 0.97 | AL36: 20114 | AM36: =#REF! ->  | AN36: 0

Sheet Spline_Solution (hidden)
A1: Example of a simple spline for a 'missing' series
N2: NB the starting values for this splines can be more or less any value, but choosing roughly 1/4 of the original annual series is a reasonable start
A3: 1. Assume we have an annual series for ISIC 1074: Manufacture of macaroni, noodles, couscous and similar farinaceous products | G3: 2. We can create a simple spline for this series which is as smooth as possible…
B4: Annual Series | C4: Sum Spline | D4: Set=0 | I4: Solver Spline | J4: XLPBM Spline | K4: Spline Guide
A5: 2004 | B5: 2075.694052 | C5: =SUM(IF($G$5:$G$36=A5,$I$5:$I$36)) -> 2075.694052 | D5: =C5-B5 -> 0 | G5: 2004 | H5: Q1 | I5: 495.0289945 | J5: =[1]!XLPBM(K5:K36,B5:B12) -> 492.327082 | K5: 1 | L5: Minimize | M5: =SUM((I6:I36/I5:I35-1)^2) -> 0.02672485147
A6: =A5+1 -> 2005 | B6: 2481.352354 | C6: =SUM(IF($G$5:$G$36=A6,$I$5:$I$36)) -> 2481.352354 | D6: =C6-B6 -> 0 | G6: =G5 -> 2004 | H6: Q2 | I6: 504.4957104 | J6: 502.9656544 | K6: 1
A7: =A6+1 -> 2006 | B7: 2344.399988 | C7: =SUM(IF($G$5:$G$36=A7,$I$5:$I$36)) -> 2344.399988 | D7: 0 | G7: =G6 -> 2004 | H7: Q3 | I7: 523.389431 | J7: 524.2427991 | K7: 1 | M7: Solver Model
A8: 2007 | B8: 2467.893712 | C8: =SUM(IF($G$5:$G$36=A8,$I$5:$I$36)) -> 2467.893712 | D8: 0 | G8: 2004 | H8: Q4 | I8: 552.7799159 | J8: 556.1585162 | K8: 1 | M8: =MIN($M$5) -> 0.02672485147
A9: 2008 | B9: 2666.893712 | C9: =SUM(IF($G$5:$G$36=A9,$I$5:$I$36)) -> 2666.893712 | D9: 0 | G9: =G5+1 -> 2005 | H9: =H5 -> Q1 | I9: 594.2909334 | J9: 598.7128057 | K9: 1 | M9: =COUNT($I$5:$I$36) -> 32
A10: 2009 | B10: 2576.893712 | C10: =SUM(IF($G$5:$G$36=A10,$I$5:$I$36)) -> 2576.893712 | D10: 0 | G10: =G6+1 -> 2005 | H10: =H6 -> Q2 | I10: 623.3630181 | J10: 624.3846346 | K10: 1 | M10: =$D$5:$D$12=0 -> TRUE
A11: 2010 | B11: 2812.203734 | C11: =SUM(IF($G$5:$G$36=A11,$I$5:$I$36)) -> 2812.203734 | D11: 0 | G11: 2005 | H11: Q3 | I11: 635.6161913 | J11: 633.1740028 | K11: 1 | M11: ={100,100,0.000001,0.05,FALSE,FALSE,FALSE,1,1,1,0.0001,FALSE} -> 100
A12: 2011 | B12: 3113.893712 | C12: =SUM(IF($G$5:$G$36=A12,$I$5:$I$36)) -> 3113.893712 | D12: 0 | G12: 2005 | H12: Q4 | I12: 628.0822107 | J12: 625.0809105 | K12: 1
G13: 2006 | H13: Q1 | I13: 600.1416493 | J13: 600.1053576 | K13: 1
G14: 2006 | H14: Q2 | I14: 584.1774551 | J14: 584.5129922 | K14: 1
G15: 2006 | H15: Q3 | I15: 578.274002 | J15: 578.3038142 | K15: 1
G16: 2006 | H16: Q4 | I16: 581.8068814 | J16: 581.4778238 | K16: 1
G17: 2007 | H17: Q1 | I17: 594.4239646 | J17: 594.0350207 | K17: 1
G18: 2007 | H18: Q2 | I18: 608.4387544 | J18: 608.2332624 | K18: 1
G19: 2007 | H19: Q3 | I19: 623.9523239 | J19: 624.0725489 | K19: 1
G20: 2007 | H20: Q4 | I20: 641.0786691 | J20: 641.55288 | K20: 1
G21: 2008 | H21: Q1 | I21: 659.9686784 | J21: 660.6742559 | K21: 1
G22: 2008 | H22: Q2 | I22: 670.6390628 | J22: 670.7424751 | K22: 1
G23: 2008 | H23: Q3 | I23: 672.1808163 | J23: 671.7575376 | K23: 1
G24: 2008 | H24: Q4 | I24: 664.1051545 | J24: 663.7194434 | K24: 1
G25: 2009 | H25: Q1 | I25: 646.3851133 | J25: 646.6281925 | K25: 1
G26: 2009 | H26: Q2 | I26: 638.7118699 | J26: 638.8297863 | K26: 1
G27: 2009 | H27: Q3 | I27: 640.4884259 | J27: 640.3242249 | K27: 1
G28: 2009 | H28: Q4 | I28: 651.3083029 | J28: 651.1115083 | K28: 1
G29: 2010 | H29: Q1 | I29: 671.3403477 | J29: 671.1916363 | K29: 1
G30: 2010 | H30: Q2 | I30: 692.0189463 | J30: 691.9674064 | K30: 1
G31: 2010 | H31: Q3 | I31: 713.4024012 | J31: 713.4388185 | K31: 1
G32: 2010 | H32: Q4 | I32: 735.4420388 | J32: 735.6058727 | K32: 1
G33: 2011 | H33: Q1 | I33: 757.9328614 | J33: 758.4685689 | K33: 1
G34: 2011 | H34: Q2 | I34: 775.4110123 | J34: 775.615591 | K34: 1
G35: 2011 | H35: Q3 | I35: 787.2773022 | J35: 787.0469391 | K35: 1
G36: 2011 | H36: Q4 | I36: 793.2725362 | J36: 792.7626131 | K36: 1

Sheet Multi_Bench_Solution (hidden)
A1: Example of 'simultaneous' benchmarking - solution | R1: Using a proportional Denton method, generate series for each of these components consistent with the 'definitive' series from an annual survey.
B2: Given these quarterly series based on short term indicators | L2: …and
C3: Agriculture | D3: Forestry & Fishing | E3: Mining and quarrying | F3: Manufacturing Formal | G3: Manufacturing informal | H3: Electricity supply | I3: Water supply | J3: Construction | M3: Benchmark annual totals | N3: Sum Bench series | O3: Set=0 | S3: Agriculture | T3: Forestry & Fishing | U3: Mining and quarrying | V3: Manufacturing Formal | W3: Manufacturing informal | X3: Electricity supply | Y3: Water supply | Z3: Construction
B4: 200604 | C4: 332.2789804 | D4: 682.7699582 | E4: 13.90267479 | F4: 251.112562 | G4: 78.20909929 | H4: 51.22912409 | I4: 90.30081503 | J4: 743.7381074 | L4: 2007 | M4: 9203.586858 | N4: =SUM(IF(L4=$Q$5:$Q$20,$S$5:$Z$20)) -> 9203.587194 | O4: =N4-M4 -> 0.0003364176046 | Q4: =VALUE(LEFT(R4,4)) -> 2006 | R4: 200604 | S4: =C4 -> 332.2789804 | T4: =D4 -> 682.7699582 | U4: 13.90267479 | V4: 251.112562 | W4: 78.20909929 | X4: 51.22912409 | Y4: 90.30081503 | Z4: 743.7381074 | AB4: Min | AC4: =SUM((S5:Z20/S4:Z19-C5:J20/C4:J19)^2) -> 0.0001701799471
B5: 200701 | C5: 321.0560082 | D5: 660.0897861 | E5: 21.11126408 | F5: 264.2758304 | G5: 100.2090005 | H5: 51.87866464 | I5: 90.90709024 | J5: 780.1281482 | L5: 2008 | M5: 9702.773484 | N5: =SUM(IF(L5=$Q$5:$Q$20,$S$5:$Z$20)) -> 9702.773484 | O5: =N5-M5 -> 7.789822121e-08 | Q5: =VALUE(LEFT(R5,4)) -> 2007 | R5: 200701 | S5: 320.0572209 | T5: 657.219076 | U5: 21.10834497 | V5: 263.7204505 | W5: 100.1548624 | X5: 51.8443239 | Y5: 90.79493032 | Z5: 777.1975885
B6: 200702 | C6: 369.0597437 | D6: 752.5438606 | E6: 21.13375868 | F6: 266.6409303 | G6: 98.26677779 | H6: 52.20453277 | I6: 91.55892155 | J6: 727.1443209 | L6: 2009 | M6: 10041.49002 | N6: =SUM(IF(L6=$Q$5:$Q$20,$S$5:$Z$20)) -> 10041.49002 | O6: -4.439789336e-08 | Q6: 2007 | R6: 200702 | S6: 367.3835066 | T6: 747.9535716 | U6: 21.12706346 | V6: 265.6822501 | W6: 98.12603317 | X6: 52.15173826 | Y6: 91.37420226 | Z6: 722.8061125
B7: 200703 | C7: 336.4464044 | D7: 683.4266762 | E7: 19.48878877 | F7: 272.4448632 | G7: 93.89402032 | H7: 53.82826869 | I7: 93.09706459 | J7: 687.9338337 | L7: 2010 | M7: 10467.00564 | N7: =SUM(IF(L7=$Q$5:$Q$20,$S$5:$Z$20)) -> 10467.00564 | O7: 3.556488082e-08 | Q7: 2007 | R7: 200703 | S7: 334.5463678 | T7: 679.0713406 | U7: 19.48011866 | V7: 271.2343854 | W7: 93.6998575 | X7: 53.76107816 | Y7: 92.86391079 | Z7: 683.8305481
B8: 200704 | C8: 338.2645793 | D8: 697.7167947 | E8: 11.52360575 | F8: 257.7642399 | G8: 64.97554111 | H8: 55.6838208 | I8: 93.66013812 | J8: 817.6410613 | Q8: 2007 | R8: 200704 | S8: 336.4050183 | T8: 694.285061 | U8: 11.51927932 | V8: 256.5653001 | W8: 64.82400616 | X8: 55.61543006 | Y8: 93.40692057 | Z8: 813.7772962
B9: 200801 | C9: 324.2137846 | D9: 673.8509615 | E9: 17.60560411 | F9: 275.4434198 | G9: 83.34904021 | H9: 58.13723783 | I9: 94.3133837 | J9: 880.227454 | Q9: 2008 | R9: 200801 | S9: 322.8186621 | T9: 672.825391 | U9: 17.60095939 | V9: 274.3268623 | W9: 83.16480568 | X9: 58.06986715 | Y9: 94.06735773 | Z9: 878.8571091
B10: 200802 | C10: 371.3546521 | D10: 756.6579773 | E10: 24.78413437 | F10: 288.9957596 | G10: 102.1232586 | H10: 59.3926538 | I10: 94.83262641 | J10: 808.4977036 | Q10: 2008 | R10: 200802 | S10: 369.8964473 | T10: 756.6279495 | U10: 24.78050558 | V10: 287.8890131 | W10: 101.8837475 | X10: 59.32853144 | Y10: 94.57103902 | Z10: 808.922709
B11: 200803 | C11: 338.6004045 | D11: 679.5665922 | E11: 26.76823898 | F11: 304.6129011 | G11: 110.595288 | H11: 60.13143664 | I11: 96.66002478 | J11: 747.749434 | Q11: 2008 | R11: 200803 | S11: 337.2517506 | T11: 679.6615461 | U11: 26.76356124 | V11: 303.4063128 | W11: 110.3024779 | X11: 60.06999039 | Y11: 96.35743421 | Z11: 748.1853432
B12: 200804 | C12: 339.8511488 | D12: 686.3581771 | E12: 18.72026671 | F12: 291.2128522 | G12: 81.72366862 | H12: 60.45011538 | I12: 97.94706922 | J12: 863.6710126 | Q12: 2008 | R12: 200804 | S12: 338.3278637 | T12: 685.546821 | U12: 18.71129556 | V12: 289.9348099 | W12: 81.4370272 | X12: 60.37326964 | Y12: 97.56618065 | Z12: 863.2468434
B13: 200901 | C13: 324.8700642 | D13: 670.9473529 | E13: 22.68459722 | F13: 305.3381054 | G13: 98.5965743 | H13: 61.60569454 | I13: 98.41169634 | J13: 914.2457153 | Q13: 2009 | R13: 200901 | S13: 323.0059237 | T13: 668.322867 | U13: 22.6688547 | V13: 303.7192826 | W13: 98.19719522 | X13: 61.50339411 | Y13: 97.95064261 | Z13: 911.2990958
B14: 200902 | C14: 373.5253867 | D14: 768.8468244 | E14: 22.75539561 | F14: 316.5161497 | G14: 96.31607773 | H14: 61.98758435 | I14: 98.36054041 | J14: 841.1157122 | Q14: 2009 | R14: 200902 | S14: 371.3005457 | T14: 764.9474766 | U14: 22.73586623 | V14: 314.7473661 | W14: 95.87572852 | X14: 61.86679173 | Y14: 97.85091765 | Z14: 837.0346209
B15: 200903 | C15: 340.8386597 | D15: 696.4254848 | E15: 22.63094128 | F15: 328.404616 | G15: 99.88676771 | H15: 62.54174339 | I15: 98.30953171 | J15: 826.5102391 | Q15: 2009 | R15: 200903 | S15: 338.9215059 | T15: 692.8896693 | U15: 22.60917136 | V15: 326.6572068 | W15: 99.40119598 | X15: 62.41324014 | Y15: 97.76426065 | Z15: 822.603821
B16: 200904 | C16: 338.6835906 | D16: 699.8486426 | E16: 17.87987828 | F16: 313.9135242 | G16: 79.68817145 | H16: 62.75260943 | I16: 98.25866976 | J16: 924.1763994 | Q16: 2009 | R16: 200904 | S16: 337.1073 | T16: 697.1933537 | U16: 17.8640144 | V16: 312.5298295 | W16: 79.29591959 | X16: 62.6196053 | Y16: 97.71962663 | Z16: 920.8737286
B17: 201001 | C17: 325.6620713 | D17: 680.1218676 | E17: 23.80660402 | F17: 330.4189854 | G17: 102.7453494 | H17: 64.06958238 | I17: 98.20795407 | J17: 963.9865019 | Q17: 2010 | R17: 201001 | S17: 324.7044396 | T17: 679.3877445 | U17: 23.78662031 | V17: 329.4414434 | W17: 102.2530792 | X17: 63.94481063 | Y17: 97.69426683 | Z17: 963.0986672
B18: 201002 | C18: 371.9090839 | D18: 778.0213391 | E18: 24.04123118 | F18: 342.5152091 | G18: 100.3688934 | H18: 64.48947585 | I18: 98.15738417 | J18: 896.5997005 | Q18: 2010 | R18: 201002 | S18: 371.1538436 | T18: 778.2959852 | U18: 24.02461418 | V18: 341.8958166 | W18: 99.90196482 | X18: 64.38476508 | Y18: 97.64711836 | Z18: 897.3814567
B19: 201003 | C19: 340.2246289 | D19: 705.5999995 | E19: 23.94954321 | F19: 355.3802099 | G19: 104.0898319 | H19: 65.05364524 | I19: 98.10695957 | J19: 881.9942274 | Q19: 2010 | R19: 201003 | S19: 339.9042552 | T19: 706.7293766 | U19: 23.93418679 | V19: 355.0695334 | W19: 103.6174864 | X19: 64.95803362 | Y19: 97.60039527 | Z19: 883.416741
B20: 201004 | C20: 336.8069002 | D20: 709.0231573 | E20: 19.2050336 | F20: 339.6988005 | G20: 83.04131333 | H20: 65.26714806 | I20: 98.05667979 | J20: 979.6603877 | Q20: 2010 | R20: 201004 | S20: 336.6547505 | T20: 710.5085146 | U20: 19.1928071 | V20: 339.5958649 | W20: 82.67033675 | X20: 65.18026991 | Y20: 97.55265391 | Z20: 981.4237964

Sheet XLPBM_Solution (hidden)
A1: Example of the use of XLPBM to benchmark quarterly indicators to annual 'benchmark' data
B3: Annual benchmark | E3: Indicator data | I3: Benchmak series
A4: Year | B4: Y | E4: Year | F4: Q | G4: X | I4: Year | J4: Q | K4: X hat
A5: 2004 | B5: 954.2102131 | E5: =A5 -> 2004 | F5: 1 | G5: 77.13493005 | I5: =E5 -> 2004 | J5: =F5 -> 1 | K5: =[1]!XLPBM(G5:G56,B5:B14) -> 217.5494841
A6: =A5+1 -> 2005 | B6: 959.0988206 | E6: =E5 -> 2004 | F6: 2 | G6: 87.45846386 | I6: =E6 -> 2004 | J6: 2 | K6: 246.6543622
A7: =A6+1 -> 2006 | B7: 900.9075827 | E7: =E6 -> 2004 | F7: 3 | G7: 83.19288963 | I7: 2004 | J7: 3 | K7: 234.6013241
A8: 2007 | B8: 922.0047187 | E8: 2004 | F8: 4 | G8: 90.58358761 | I8: 2004 | J8: 4 | K8: 255.4050426
A9: 2008 | B9: 944.4689737 | E9: =E5+1 -> 2005 | F9: 1 | G9: 80.63323314 | I9: 2005 | J9: 1 | K9: 227.3035422
A10: 2009 | B10: 957.161293 | E10: =E6+1 -> 2005 | F10: 2 | G10: 88.06922787 | I10: 2005 | J10: 2 | K10: 248.2638393
A11: 2010 | B11: 980.2818895 | E11: 2005 | F11: 3 | G11: 83.03379752 | I11: 2005 | J11: 3 | K11: 234.1176385
A12: 2011 | B12: 1031.229666 | E12: 2005 | F12: 4 | G12: 88.42271487 | I12: 2005 | J12: 4 | K12: 249.4138005
A13: 2012 | B13: 1088.418693 | E13: 2006 | F13: 1 | G13: 74.30978251 | I13: 2006 | J13: 1 | K13: 209.736027
A14: 2013 | B14: 1136.222074 | E14: 2006 | F14: 2 | G14: 82.27758641 | I14: 2006 | J14: 2 | K14: 232.3100577
A15: 2014 | B15: 1126.554 | E15: 2006 | F15: 3 | G15: 78.7746417 | I15: 2006 | J15: 3 | K15: 222.438306
E16: 2006 | F16: 4 | G16: 83.74285335 | I16: 2006 | J16: 4 | K16: 236.4231921
E17: 2007 | F17: 1 | G17: 74.05556533 | I17: 2007 | J17: 1 | K17: 208.9749502
E18: 2007 | F18: 2 | G18: 83.81758796 | I18: 2007 | J18: 2 | K18: 236.4741323
E19: 2007 | F19: 3 | G19: 80.88933086 | I19: 2007 | J19: 3 | K19: 228.2364619
E20: 2007 | F20: 4 | G20: 87.97160588 | I20: 2007 | J20: 4 | K20: 248.3191744
E21: 2008 | F21: 1 | G21: 77.09140693 | I21: 2008 | J21: 1 | K21: 217.7646644
E22: 2008 | F22: 2 | G22: 86.15673568 | I22: 2008 | J22: 2 | K22: 243.5453433
E23: 2008 | F23: 3 | G23: 82.01699485 | I23: 2008 | J23: 3 | K23: 232.0056472
E24: 2008 | F24: 4 | G24: 88.72477604 | I24: 2008 | J24: 4 | K24: 251.1533188
E25: 2009 | F25: 1 | G25: 75.85732199 | I25: 2009 | J25: 1 | K25: 214.8748829
E26: 2009 | F26: 2 | G26: 87.39639938 | I26: 2009 | J26: 2 | K26: 247.7608253
E27: 2009 | F27: 3 | G27: 84.40979174 | I27: 2009 | J27: 3 | K27: 239.5235504
E28: 2009 | F28: 4 | G28: 89.76541579 | I28: 2009 | J28: 4 | K28: 255.0020344
E29: 2010 | F29: 1 | G29: 76.79443709 | I29: 2010 | J29: 1 | K29: 218.4289926
E30: 2010 | F30: 2 | G30: 88.88546567 | I30: 2010 | J30: 2 | K30: 253.1202525
E31: 2010 | F31: 3 | G31: 85.49269987 | I31: 2010 | J31: 3 | K31: 243.7282917
E32: 2010 | F32: 4 | G32: 92.86001675 | I32: 2010 | J32: 4 | K32: 265.0043527
E33: 2011 | F33: 1 | G33: 82.78310559 | I33: 2011 | J33: 1 | K33: 236.4705928
E34: 2011 | F34: 2 | G34: 91.35273302 | I34: 2011 | J34: 2 | K34: 261.0811013
E35: 2011 | F35: 3 | G35: 89.980676 | I35: 2011 | J35: 3 | K35: 257.16347
E36: 2011 | F36: 4 | G36: 96.79677441 | I36: 2011 | J36: 4 | K36: 276.5145017
E37: 2012 | F37: 1 | G37: 86.71297629 | I37: 2012 | J37: 1 | K37: 247.4644591
E38: 2012 | F38: 2 | G38: 96.75833633 | I38: 2012 | J38: 2 | K38: 275.8636162
E39: 2012 | F39: 3 | G39: 95.27051535 | I39: 2012 | J39: 3 | K39: 271.3614355
E40: 2012 | F40: 4 | G40: 103.2209131 | I40: 2012 | J40: 4 | K40: 293.7291823
E41: 2013 | F41: 1 | G41: 93.12079384 | I41: 2013 | J41: 1 | K41: 264.7418686
E42: 2013 | F42: 2 | G42: 101.6292184 | I42: 2013 | J42: 2 | K42: 288.7252552
E43: 2013 | F43: 3 | G43: 98.54374037 | I43: 2013 | J43: 3 | K43: 279.8259085
E44: 2013 | F44: 4 | G44: 106.7062473 | I44: 2013 | J44: 4 | K44: 302.929042
E45: 2014 | F45: 1 | G45: 94.35 | I45: 2014 | J45: 1 | K45: 267.8508131
E46: 2014 | F46: 2 | G46: 101.74 | I46: 2014 | J46: 2 | K46: 288.8303309
E47: 2014 | F47: 3 | G47: 97.4 | I47: 2014 | J47: 3 | K47: 276.5094774
E48: 2014 | F48: 4 | G48: 104.2 | I48: 2014 | J48: 4 | K48: 295.8140405
